bitfinex/quotes_BTCUSD_20210101
["timestamp","ask_amount","ask_price","bid_price","bid_amount"]
[1609477920568,0.285,29146.0,29140.0,0.98]
[1609477920770,0.9935584,29146.0,29140.0,0.98]
[1609477920970,0.295,29146.0,29140.0,0.98]
[1609477921368,0.9327,29150.0,29140.0,0.95870409]
[1609477921568,1.8312584,29150.0,29140.0,0.95870409]
[1609477921770,0.365,29149.0,29140.0,0.95870409]
[1609477921969,0.9327,29150.0,29140.0,0.95870409]
[1609477922370,0.8377,29150.0,29140.0,0.95870409]
[1609477923068,0.6377,29150.0,29140.0,0.95870409]
[1609477923271,0.8377,29150.0,29144.0,0.5141]
[1609477923489,0.8377,29150.0,29144.0,1.5141]
[1609477923490,0.762398,29149.0,29144.0,1.5141]
[1609477923687,1.1935584,29148.0,29144.0,1.5141]
[1609477923993,1.6509564,29147.0,29144.0,1.0]
[1609477924189,0.362398,29145.0,29144.0,1.0]
[1609477924389,0.562398,29145.0,29144.0,1.0]
[1609477924596,1.5559564,29145.0,29139.0,0.6854]
[1609477924791,0.295,29144.0,29139.0,1.0]
[1609477924988,1.2885584,29144.0,29139.0,1.0]
[1609477925291,0.19,29143.0,29139.0,1.0]
[1609477925492,0.74766812,29149.0,29139.0,1.0]
[1609477925689,1.2885584,29148.0,29139.0,1.0]
[1609477925996,1.22702652,29147.0,29139.0,1.0]
[1609477926191,1.5509564,29146.0,29139.0,1.0]
[1609477926489,0.295,29145.0,29139.0,1.0]
[1609477926689,1.2835584,29145.0,29139.0,1.0]
[1609477926992,1.1885584,29144.0,29139.0,1.0]
[1609477927193,1.1885584,29143.0,29139.0,1.0]
[1609477927391,0.19,29142.0,29139.0,1.0]
[1609477927993,0.095,29141.0,29139.0,1.0]
[1609477929117,0.2,29144.0,29139.0,1.0]
[1609477929318,0.295,29144.0,29139.0,1.0]
[1609477929517,0.625,29147.0,29139.0,1.0]
[1609477929722,0.03346812,29148.0,29139.0,1.0]
[1609477929723,0.82694936,29143.0,29139.0,1.0]
[1609477932467,0.145,29142.0,29139.0,1.0]
[1609477933817,0.145,29141.0,29139.0,1.0]
[1609477934320,0.82694936,29143.0,29136.0,0.0002]
[1609477934521,0.82694936,29143.0,29135.0,0.18427293]
[1609477934718,0.82694936,29143.0,29138.0,0.5142]
[1609477935017,0.82694936,29143.0,29140.0,0.01083526]
[1609477938950,0.06078688,29142.0,29140.0,0.01083526]
[1609477939750,0.16703194,29142.0,29140.0,0.01083526]
[1609477939948,0.19078688,29142.0,29140.0,0.01083526]
[1609477940149,0.06061866,29141.0,29140.0,0.01083526]
[1609477940554,0.06061287,29142.0,29140.0,0.01083526]
[1609477940854,0.06062039,29141.0,29140.0,0.32468524]
[1609477941252,0.06061281,29142.0,29140.0,0.32468524]
[1609477945202,0.06061281,29142.0,29140.0,0.31968524]
[1609477945912,0.1818151,29142.0,29140.0,0.31968524]
[1609477946513,0.1818151,29142.0,29140.0,0.00583526]
[1609477946715,0.15,29141.0,29140.0,0.00583526]
[1609477947718,0.41068458,29141.0,29140.0,0.00583526]
[1609477948355,0.21068458,29141.0,29140.0,0.00583526]
[1609477954175,0.41068458,29141.0,29140.0,0.2066347]
[1609477954679,0.21068458,29141.0,29140.0,0.2066347]
[1609477958179,0.33186944,29141.0,29140.0,0.2066347]
[1609477958682,0.21068458,29141.0,29140.0,0.2066347]
[1609477958877,0.21068458,29141.0,29140.0,0.00583526]
[1609477959604,0.33205217,29141.0,29140.0,0.00583526]
[1609477960005,0.21068458,29141.0,29140.0,0.00583526]
[1609477960201,0.21068458,29141.0,29140.0,0.28311898]
[1609477960735,0.21068458,29141.0,29140.0,0.28811883]
[1609477962838,0.57308258,29141.0,29140.0,0.28311883]
[1609477963235,0.57308258,29141.0,29140.0,0.00583511]
[1609477963437,1.71686098,29141.0,29140.0,0.00583511]
[1609477963639,4.61686098,29141.0,29140.0,0.00583511]
[1609477963841,4.8503291,29141.0,29140.0,0.00583511]
[1609477964042,1.9503291,29141.0,29140.0,0.00583511]
[1609477964435,3.1003291,29141.0,29140.0,0.00583511]
[1609477964966,1.9503291,29141.0,29140.0,0.00583511]
[1609477965268,2.26875935,29141.0,29140.0,0.00583511]
[1609477965463,1.9503291,29141.0,29140.0,0.00583511]
[1609477966262,1.9503291,29141.0,29135.0,0.001]
[1609477966465,1.60043558,29140.0,29135.0,0.001]
[1609477966664,0.71440001,29138.0,29135.0,0.001]
[1609477966967,1.03399739,29136.0,29135.0,0.001]
[1609477967164,0.362394,29136.0,29135.0,0.001]
[1609477967366,0.737394,29136.0,29135.0,0.001]
[1609477967669,0.737394,29136.0,29135.0,0.32995699]
[1609477967670,0.79863055,29136.0,29135.0,0.32995699]
[1609477968067,0.59863055,29136.0,29135.0,0.32995699]
[1609477968666,0.06123655,29136.0,29135.0,0.32995699]
[1609477968968,0.362394,29139.0,29136.0,1.0]
[1609477969472,0.1213827,29140.0,29137.0,0.195]
[1609477969971,0.94844809,29143.0,29137.0,0.195]
[1609477970271,0.94844809,29143.0,29142.0,1.71195008]
[1609477970523,0.82694936,29143.0,29142.0,1.71195008]
[1609477971404,0.82694936,29143.0,29142.0,2.86195008]
[1609477971608,0.82694936,29143.0,29142.0,4.36195008]
[1609477971812,9.36e-06,29143.0,29142.0,4.72590008]
[1609477972010,9.36e-06,29143.0,29142.0,5.24000008]
[1609477973510,0.12130979,29149.0,29142.0,5.24000008]
[1609477973712,0.00606732,29143.0,29142.0,5.24000008]
[1609477974110,0.12134646,29150.0,29143.0,3.55]
[1609477974335,0.12134646,29150.0,29144.0,1.5]
[1609477974733,0.1214237,29151.0,29144.0,1.5]
[1609477974936,0.1214237,29151.0,29145.0,0.69]
[1609477975237,0.1214237,29151.0,29146.0,0.74238213]
[1609477975493,0.48137026,29152.0,29146.0,0.74238213]
[1609477975683,0.48137026,29152.0,29147.0,0.21]
[1609477976084,0.48137026,29152.0,29148.0,0.245]
[1609477976485,0.48137026,29152.0,29146.0,0.6853]
[1609477977086,0.48137026,29152.0,29147.0,0.74238213]
[1609477977390,0.35996592,29152.0,29147.0,0.74238213]
[1609477977587,0.2193,29152.0,29147.0,0.74238213]
[1609477977786,0.2193,29152.0,29148.0,0.315]
[1609477978887,0.2193,29152.0,29148.0,1.05738213]
[1609477979086,0.2143,29152.0,29148.0,1.05738213]
[1609477979388,0.2143,29152.0,29149.0,0.26]
[1609477979592,0.9885584,29151.0,29149.0,0.26]
[1609477979789,0.095,29150.0,29145.0,0.6853]
[1609477980023,0.362394,29149.0,29139.0,0.20633917]
[1609477980223,1.1885584,29149.0,29139.0,0.20633917]
[1609477980422,0.0020192,29144.0,29139.0,0.20633917]
[1609477980722,0.0020192,29144.0,29135.0,0.001]
[1609477980920,0.0020192,29144.0,29139.0,0.17]
[1609477980921,0.095,29143.0,29139.0,0.17]
[1609477981319,0.0020192,29144.0,29139.0,0.17]
[1609477981721,0.0020196,29145.0,29139.0,0.17]
[1609477981921,0.0870196,29146.0,29140.0,1.9]
[1609477982119,0.0870196,29146.0,29139.0,0.17]
[1609477982321,0.0870196,29146.0,29138.0,2.1856]
[1609477982721,0.2870196,29146.0,29138.0,2.1856]
[1609477983121,0.0870196,29146.0,29138.0,2.1856]
[1609477983422,0.2870196,29146.0,29138.0,2.1856]
[1609477983661,0.0870196,29146.0,29138.0,2.1856]
[1609477985549,0.0870196,29146.0,29139.0,0.32298554]
[1609477985747,1.303678,29146.0,29139.0,0.32298554]
[1609477985952,1.38442052,29145.0,29138.0,0.6856]
[1609477986150,1.4685584,29144.0,29135.0,0.30789591]
[1609477986349,1.637972,29143.0,29135.0,0.30789591]
[1609477986656,0.562394,29141.0,29135.0,0.30789591]
[1609477986852,0.0870196,29140.0,29135.0,0.30789591]
[1609477987045,0.3114196,29140.0,29135.0,0.30789591]
[1609477987551,0.24,29139.0,29135.0,0.001]
[1609477987751,0.4244,29140.0,29135.0,0.001]
[1609477988053,0.2244,29140.0,29135.0,0.001]
[1609477988549,0.0870196,29139.0,29135.0,0.001]
[1609477991614,0.2870196,29142.0,29135.0,0.001]
[1609477991916,0.2820196,29142.0,29136.0,0.01083665]
[1609477992116,0.0820196,29142.0,29136.0,0.01083665]
[1609477992817,0.2820196,29142.0,29137.0,0.5142]
[1609477993052,0.0820196,29142.0,29137.0,0.5142]
[1609477993353,0.0770196,29142.0,29137.0,0.5142]
[1609477994454,0.6399,29144.0,29137.0,0.5142]
[1609477994854,0.9885584,29143.0,29137.0,0.5142]
[1609477995060,0.3920196,29142.0,29137.0,0.5142]
[1609477995259,1.3509524,29141.0,29136.0,0.01083665]
[1609477995455,1.3635584,29140.0,29136.0,0.01083665]
[1609477995655,0.5920196,29139.0,29136.0,0.01083665]
[1609477995855,0.0770196,29139.0,29136.0,0.01083665]
[1609477996455,0.362394,29138.0,29136.0,0.01083665]
[1609477996954,0.0770196,29139.0,29136.0,0.01083665]
[1609477997456,0.0770196,29142.0,29136.0,0.01083665]
[1609477997656,0.362393,29141.0,29136.0,0.01083665]
[1609477997861,0.24,29142.0,29139.0,0.27893468]
[1609477998060,0.362393,29141.0,29139.0,0.27893468]
[1609477998258,0.24,29142.0,29139.0,0.27893468]
[1609477998458,0.04,29142.0,29139.0,0.27893468]
[1609477999175,0.6399,29144.0,29139.0,0.27893468]
[1609477999775,0.05750824,29143.0,29139.0,0.27893468]
[1609478001379,0.05750824,29143.0,29137.0,0.04806519]
[1609478001678,0.05250824,29143.0,29137.0,0.04806519]
[1609478002076,0.6769,29147.0,29137.0,0.04806519]
[1609478002277,0.6769,29147.0,29146.0,0.32074486]
[1609478002481,1.319293,29147.0,29146.0,0.32074486]
[1609478003183,1.37676817,29147.0,29146.0,0.32074486]
[1609478005203,1.49768714,29147.0,29146.0,0.32074486]
[1609478005860,1.37676817,29147.0,29146.0,0.32074486]
[1609478007068,3.49234617,29147.0,29141.0,0.19188646]
[1609478007270,0.562393,29145.0,29141.0,0.19188646]
[1609478007467,0.6394126,29143.0,29136.0,0.24194822]
[1609478007673,0.562393,29141.0,29136.0,0.01083665]
[1609478007965,0.38048772,29140.0,29136.0,0.01083665]
[1609478008206,0.362393,29139.0,29137.0,0.18822956]
[1609478008605,1.5509514,29139.0,29137.0,0.18822956]
[1609478008804,0.53,29138.0,29136.0,0.01083665]
[1609478009005,2.0994126,29137.0,29136.0,0.01083665]
[1609478009206,3.087971,29137.0,29136.0,0.01083665]
[1609478009404,0.7494126,29137.0,29136.0,0.01083665]
[1609478009809,0.6144126,29137.0,29136.0,0.01083665]
[1609478010009,1.2144126,29137.0,29136.0,0.01083665]
[1609478010206,0.4144126,29137.0,29136.0,0.01083665]
[1609478010405,0.3220196,29137.0,29136.0,0.01083665]
[1609478011107,0.6844126,29137.0,29136.0,0.01083665]
[1609478011308,0.3120196,29137.0,29136.0,0.01083665]
[1609478013312,0.0420196,29137.0,29136.0,0.01083665]
[1609478013722,0.6914,29139.0,29136.0,0.01083665]
[1609478013924,0.7334196,29139.0,29138.0,0.17555395]
[1609478015327,0.74870975,29139.0,29138.0,0.17555395]
[1609478015522,0.79072935,29139.0,29138.0,0.17555395]
[1609478016030,1.15312235,29139.0,29138.0,0.17555395]
[1609478016325,1.32312235,29139.0,29138.0,0.17555395]
[1609478018132,1.32312235,29139.0,29138.0,0.18639008]
[1609478019134,0.22730975,29139.0,29138.0,0.18639008]
[1609478019379,0.05730975,29139.0,29138.0,0.18639008]
[1609478019774,0.42147225,29143.0,29138.0,0.18639008]
[1609478020077,0.05734095,29139.0,29138.0,0.18639008]
[1609478020475,0.178207,29144.0,29138.0,0.18639008]
[1609478020986,0.178207,29144.0,29143.0,0.27400558]
[1609478020987,1.38327113,29144.0,29143.0,0.27400558]
[1609478021184,2.57182953,29144.0,29138.0,0.01083613]
[1609478021487,3.912393,29139.0,29138.0,0.01083613]
[1609478021685,5.17643912,29139.0,29138.0,0.01083613]
[1609478022286,5.65463571,29139.0,29138.0,0.01083613]
[1609478022483,7.27903571,29139.0,29138.0,0.01083613]
[1609478022684,7.63078532,29139.0,29138.0,0.01083613]
[1609478022888,8.07818894,29139.0,29138.0,0.01083613]
[1609478023419,8.24050548,29139.0,29138.0,0.01083613]
[1609478023619,8.36418486,29139.0,29138.0,0.01083613]
[1609478024316,8.03738184,29139.0,29138.0,0.01083613]
[1609478024518,7.91678124,29139.0,29138.0,0.01083613]
[1609478025720,8.0371756,29139.0,29138.0,0.01083613]
[1609478025918,8.0321756,29139.0,29138.0,0.01083613]
[1609478027523,7.9463056,29139.0,29138.0,0.01083613]
[1609478027820,7.8818456,29139.0,29138.0,0.01083613]
[1609478028949,7.76145124,29139.0,29138.0,0.01083613]
[1609478029548,6.77289284,29139.0,29138.0,0.01083613]
[1609478029753,2.88912313,29139.0,29138.0,0.01083613]
[1609478029950,2.74845721,29139.0,29138.0,0.01083613]
[1609478030355,2.54845721,29139.0,29138.0,0.01083613]
[1609478030654,1.60345721,29139.0,29138.0,0.01083613]
[1609478030854,1.74412313,29139.0,29138.0,0.01083613]
[1609478031856,3.15345721,29139.0,29138.0,0.01083613]
[1609478032057,3.86345721,29139.0,29138.0,0.01083613]
[1609478032853,4.00412313,29139.0,29138.0,0.01083613]
[1609478033554,4.99268153,29139.0,29138.0,0.01083613]
[1609478033753,4.23759125,29139.0,29138.0,0.01083613]
[1609478034367,4.20412313,29139.0,29138.0,0.01083613]
[1609478034568,4.03759125,29139.0,29138.0,0.01083613]
[1609478034868,4.00412313,29139.0,29138.0,0.01083613]
[1609478035270,4.03759125,29139.0,29138.0,0.01083613]
[1609478035850,3.99912313,29139.0,29138.0,0.01083613]
[1609478036352,4.23259125,29139.0,29138.0,0.01083613]
[1609478036549,4.19912313,29139.0,29138.0,0.01083613]
[1609478036853,3.99912313,29139.0,29138.0,0.01083613]
[1609478037052,4.98768153,29139.0,29138.0,0.01083613]
[1609478037254,5.44183773,29139.0,29138.0,0.01083613]
[1609478038055,4.45327933,29139.0,29138.0,0.01083613]
[1609478038794,4.53296584,29139.0,29138.0,0.01083613]
[1609478038994,2.98296584,29139.0,29138.0,0.01083613]
[1609478039493,2.94949772,29139.0,29138.0,0.01083613]
[1609478039694,2.64912313,29139.0,29138.0,0.01083613]
[1609478040096,3.09621141,29139.0,29138.0,0.01083613]
[1609478040293,2.64912313,29139.0,29138.0,0.01083613]
[1609478040796,3.78259125,29139.0,29138.0,0.01083613]
[1609478041195,4.10939427,29139.0,29138.0,0.01083613]
[1609478041594,3.00939427,29139.0,29138.0,0.01083613]
[1609478042097,2.48259125,29139.0,29138.0,0.01083613]
[1609478042496,2.80939427,29139.0,29138.0,0.01083613]
[1609478043598,4.10939427,29139.0,29138.0,0.01083613]
[1609478044013,3.99795267,29139.0,29138.0,0.01083613]
[1609478044216,4.29133307,29139.0,29138.0,0.01083613]
[1609478044417,4.47442057,29139.0,29138.0,0.01083613]
[1609478044912,4.5949526,29139.0,29138.0,0.01083613]
[1609478045715,3.6063942,29139.0,29138.0,0.01083613]
[1609478046317,3.3659942,29139.0,29138.0,0.01083613]
[1609478046519,5.00351692,29139.0,29138.0,0.01083613]
[1609478047116,5.17583346,29139.0,29138.0,0.01083613]
[1609478047417,5.47699014,29139.0,29138.0,0.01083613]
[1609478047917,5.3046736,29139.0,29138.0,0.01083613]
[1609478048116,5.18414157,29139.0,29138.0,0.01083613]
[1609478048314,5.25573724,29139.0,29138.0,0.01083613]
[1609478048518,3.80717884,29139.0,29138.0,0.01083613]
[1609478049019,3.10717884,29139.0,29138.0,0.01083613]
[1609478049214,3.43398186,29139.0,29138.0,0.01083613]
[1609478049641,3.10717884,29139.0,29138.0,0.01083613]
[1609478049841,3.43398186,29139.0,29138.0,0.01083613]
[1609478050042,3.10717884,29139.0,29138.0,0.01083613]
[1609478050243,3.07371072,29139.0,29138.0,0.01083613]
[1609478050448,3.00211505,29139.0,29138.0,0.01083613]
[1609478050687,2.66516054,29139.0,29138.0,0.01083613]
[1609478051682,2.66016054,29139.0,29138.0,0.01083613]
[1609478053584,2.69362866,29139.0,29138.0,0.01083613]
[1609478055600,3.34362866,29139.0,29138.0,0.01083613]
[1609478055999,2.69362866,29139.0,29138.0,0.01083613]
[1609478056303,2.96340233,29139.0,29138.0,0.01083613]
[1609478056901,2.66016054,29139.0,29138.0,0.01083613]
[1609478057100,2.51949462,29139.0,29138.0,0.01083613]
[1609478057503,2.55296274,29139.0,29138.0,0.01083613]
[1609478058201,2.69362866,29139.0,29138.0,0.01083613]
[1609478059501,2.66016054,29139.0,29138.0,0.01083613]
[1609478059904,2.69362866,29139.0,29138.0,0.01083613]
[1609478060105,2.92313866,29139.0,29138.0,0.01083613]
[1609478060602,3.22596916,29139.0,29138.0,0.01083613]
[1609478061931,3.19250104,29139.0,29138.0,0.01083613]
[1609478062231,3.22596916,29139.0,29138.0,0.01083613]
[1609478062435,2.46704403,29139.0,29138.0,1.26083613]
[1609478062639,2.09686811,29139.0,29138.0,1.26083613]
[1609478062842,1.08403761,29139.0,29138.0,1.26083613]
[1609478063740,1.08403761,29139.0,29138.0,0.01083613]
[1609478064438,1.20479802,29139.0,29138.0,0.7655578]
[1609478064635,1.20479802,29139.0,29138.0,0.0155578]
[1609478064837,1.52546394,29139.0,29138.0,0.0155578]
[1609478066114,0.84606394,29139.0,29138.0,0.0155578]
[1609478066317,0.17800502,29139.0,29138.0,2.6655578]
[1609478066515,0.17800502,29139.0,29138.0,2.6862208]
[1609478066713,0.12076041,29139.0,29138.0,2.6862208]
[1609478066910,0.12076041,29139.0,29138.0,3.1162208]
[1609478067616,0.48315341,29139.0,29138.0,0.4455578]
[1609478067815,0.48315341,29139.0,29138.0,0.0155578]
[1609478068213,0.12076041,29139.0,29138.0,0.0155578]
[1609478068416,0.12076041,29139.0,29138.0,1.3155578]
[1609478068618,0.0582655,29139.0,29138.0,0.2205578]
[1609478068816,0.4206585,29139.0,29138.0,0.0155578]
[1609478069214,0.0582655,29139.0,29138.0,0.0362208]
[1609478069918,0.15305701,29144.0,29139.0,0.85]
[1609478070135,0.2,29142.0,29139.0,0.85]
[1609478070431,0.9392,29145.0,29139.0,0.85]
[1609478072030,0.7142,29145.0,29139.0,0.85]
[1609478072231,0.7142,29145.0,29138.0,0.1155578]
[1609478073136,0.84666532,29145.0,29138.0,0.1155578]
[1609478073534,0.64666532,29145.0,29138.0,0.1155578]
[1609478073835,0.84666532,29145.0,29138.0,0.1155578]
[1609478074250,0.64666532,29145.0,29138.0,0.1155578]
[1609478074540,1.00905832,29145.0,29138.0,0.2017478]
[1609478074737,0.68919602,29144.0,29138.0,0.1155578]
[1609478074936,0.50305892,29144.0,29138.0,0.1155578]
[1609478075143,0.50305892,29144.0,29138.0,0.0155578]
[1609478075144,0.32,29143.0,29138.0,0.0155578]
[1609478075341,0.362393,29142.0,29138.0,0.0155578]
[1609478075643,2.162393,29139.0,29138.0,0.0155578]
[1609478076261,3.04874013,29139.0,29138.0,0.0155578]
[1609478076567,2.87921201,29139.0,29138.0,0.0155578]
[1609478076960,2.726333,29139.0,29138.0,0.0155578]
[1609478077461,2.87921201,29139.0,29138.0,0.0155578]
[1609478077661,1.07921201,29139.0,29138.0,0.0155578]
[1609478078062,0.926333,29139.0,29138.0,0.0155578]
[1609478078260,1.626333,29139.0,29138.0,0.0155578]
[1609478078463,0.867393,29139.0,29138.0,0.0155578]
[1609478078861,0.362393,29139.0,29138.0,0.0155578]
[1609478079264,1.412393,29139.0,29138.0,0.0155578]
[1609478079462,1.412393,29139.0,29138.0,0.0105578]
[1609478080900,0.337393,29139.0,29138.0,0.0105578]
[1609478082197,0.887393,29139.0,29138.0,0.0105578]
[1609478082600,0.337393,29139.0,29138.0,0.0105578]
[1609478082903,0.617393,29139.0,29138.0,0.0105578]
[1609478083336,0.337393,29139.0,29138.0,0.0105578]
[1609478083839,0.337393,29139.0,29138.0,0.0107794]
[1609478085039,0.39216098,29139.0,29138.0,0.0107794]
[1609478086341,0.39216098,29139.0,29138.0,0.1053994]
[1609478086539,0.39216098,29139.0,29138.0,0.2053994]
[1609478087240,0.39216098,29139.0,29138.0,0.9553994]
[1609478087440,0.05476798,29139.0,29138.0,0.2053994]
[1609478088040,0.05476798,29139.0,29138.0,0.1053994]
[1609478088240,0.05476798,29139.0,29138.0,0.0107794]
[1609478088962,0.362393,29143.0,29138.0,0.0107794]
[1609478089162,0.876693,29143.0,29138.0,0.0107794]
[1609478089569,0.05456107,29139.0,29138.0,0.0107794]
[1609478089965,0.05453516,29142.0,29138.0,0.0107794]
[1609478090165,0.362393,29141.0,29138.0,0.0107794]
[1609478090466,0.05,29140.0,29138.0,0.0107794]
[1609478090666,0.05467384,29139.0,29138.0,0.0107794]
[1609478091165,0.05467384,29139.0,29138.0,0.6064424]
[1609478091966,0.05467384,29139.0,29138.0,0.0564424]
[1609478092970,0.05467384,29139.0,29138.0,0.0107794]
[1609478093169,0.41706684,29139.0,29138.0,0.0107794]
[1609478094172,0.05467384,29139.0,29138.0,0.6107794]
[1609478095403,0.05467384,29139.0,29138.0,0.0107794]
[1609478095608,0.04967384,29139.0,29138.0,0.0107794]
[1609478096447,0.04967384,29139.0,29138.0,0.0564434]
[1609478097044,0.04967384,29139.0,29138.0,0.7064434]
[1609478097645,0.04967384,29139.0,29138.0,0.0564434]
[1609478098049,0.04967384,29139.0,29138.0,0.0107794]
[1609478099186,0.04967384,29139.0,29138.0,1.2064434]
[1609478099584,0.04967384,29139.0,29138.0,1.3864434]
[1609478100285,0.04967384,29139.0,29138.0,0.2364434]
[1609478100686,0.04967384,29139.0,29138.0,0.0564434]
[1609478100987,0.04967384,29139.0,29138.0,0.8064434]
[1609478101387,0.04967384,29139.0,29138.0,0.0564434]
[1609478101988,0.04967384,29139.0,29138.0,0.1564434]
[1609478102986,0.04967384,29139.0,29138.0,0.7064434]
[1609478103487,0.04967384,29139.0,29138.0,0.1564434]
[1609478103690,0.04967384,29139.0,29138.0,0.0564434]
[1609478104022,0.04967384,29139.0,29138.0,0.1564434]
[1609478104719,0.04967384,29139.0,29138.0,0.0564434]
[1609478105119,0.04967384,29139.0,29138.0,0.1564434]
[1609478105517,0.04967384,29139.0,29138.0,0.0564434]
[1609478106321,0.04967384,29139.0,29138.0,0.0107794]
[1609478106825,0.04967384,29139.0,29138.0,0.1564434]
[1609478107119,0.04967384,29139.0,29138.0,1.4164434]
[1609478108124,0.04967384,29139.0,29138.0,2.9164434]
[1609478108324,0.04967384,29139.0,29138.0,3.1429834]
[1609478108528,0.04967384,29139.0,29138.0,4.1429834]
[1609478108824,0.04967384,29139.0,29138.0,6.6429834]
[1609478109026,0.04967384,29139.0,29138.0,5.1429834]
[1609478110139,0.04967384,29139.0,29138.0,6.6429834]
[1609478111693,0.05,29140.0,29138.0,6.6429834]
[1609478112196,0.05605153,29140.0,29139.0,4.485661]
[1609478112392,0.05605153,29140.0,29139.0,5.985661]
[1609478112794,0.05,29140.0,29139.0,5.985661]
[1609478121357,0.05,29140.0,29139.0,6.005661]
[1609478122259,0.05,29140.0,29139.0,7.005661]
[1609478123860,0.049668,29140.0,29139.0,7.005661]
[1609478124782,0.039668,29140.0,29139.0,7.005661]
[1609478127832,8e-06,29140.0,29139.0,7.005661]
[1609478132562,8e-06,29140.0,29139.0,8.005661]
[1609478134563,0.45328684,29147.0,29140.0,0.999992]
[1609478134767,0.45328684,29147.0,29145.0,0.04564]
[1609478134966,0.45328684,29147.0,29146.0,4.105634]
[1609478135167,0.45328684,29147.0,29146.0,5.605634]
[1609478135462,0.45328684,29147.0,29146.0,6.605634]
[1609478135664,0.45328684,29147.0,29146.0,7.605634]
[1609478137075,0.0002,29158.0,29148.0,0.02451306]
[1609478137282,0.0006,29161.0,29152.0,0.04561]
[1609478137283,0.2185,29159.0,29152.0,0.04561]
[1609478137589,0.2193,29164.0,29162.0,3.55]
[1609478137883,0.2183,29164.0,29163.0,3.695569]
[1609478138082,0.2169,29164.0,29163.0,4.270569]
[1609478138384,0.2117,29164.0,29163.0,5.372589]
[1609478138578,0.26496282,29164.0,29163.0,5.372589]
[1609478140578,0.2117,29164.0,29163.0,5.372589]
[1609478140778,0.2117,29164.0,29163.0,5.367589]
[1609478141060,0.2117,29164.0,29163.0,4.372589]
[1609478142161,0.2117,29164.0,29163.0,5.372589]
[1609478142561,0.2113,29164.0,29163.0,5.372589]
[1609478142761,0.2093,29164.0,29163.0,5.545419]
[1609478142962,0.2091,29164.0,29163.0,5.545419]
[1609478143162,0.2083,29164.0,29163.0,5.545419]
[1609478143498,0.2061,29164.0,29163.0,5.545419]
[1609478143697,0.2035,29164.0,29163.0,5.545419]
[1609478143900,0.2023,29164.0,29163.0,5.545419]
[1609478144099,0.2001,29164.0,29163.0,5.540419]
[1609478144405,0.1965,29164.0,29163.0,7.040419]
[1609478144601,0.1951,29164.0,29163.0,7.040419]
[1609478144801,0.1937,29164.0,29163.0,7.040419]
[1609478145003,0.1923,29164.0,29163.0,7.040419]
[1609478145203,0.1921,29164.0,29163.0,8.040419]
[1609478145405,0.1913,29164.0,29163.0,6.540419]
[1609478145609,0.0002,29166.0,29163.0,6.540419]
[1609478145815,0.0002,29170.0,29167.0,4.745555]
[1609478146014,0.0006,29179.0,29170.0,3.595543]
[1609478146206,0.0006,29179.0,29170.0,3.828893]
[1609478147106,0.0006,29179.0,29170.0,0.278893]
[1609478147307,0.0006,29179.0,29170.0,1.503893]
[1609478147508,0.0006,29179.0,29170.0,3.053893]
[1609478148205,0.0004,29174.0,29170.0,1.503893]
[1609478148411,0.9885584,29175.0,29174.0,2.145529]
[1609478148607,0.9885584,29175.0,29174.0,1.145529]
[1609478149012,0.9891584,29178.0,29174.0,1.145529]
[1609478149237,0.0006,29178.0,29177.0,3.245516]
[1609478149436,0.0006,29178.0,29177.0,3.430336]
[1609478149632,0.0006,29178.0,29177.0,4.430336]
[1609478150331,0.0006,29178.0,29177.0,5.260336]
[1609478151232,0.0006,29178.0,29177.0,2.160336]
[1609478151433,0.9891584,29178.0,29177.0,1.145516]
[1609478151634,0.0006,29178.0,29177.0,1.145516]
[1609478152333,0.9891584,29178.0,29177.0,1.145516]
[1609478152535,0.9891584,29178.0,29177.0,0.145516]
[1609478152878,0.0006,29178.0,29177.0,0.145516]
[1609478153237,0.9847584,29179.0,29177.0,0.145516]
[1609478153933,0.17,29178.0,29177.0,0.145516]
[1609478154139,0.0008,29181.0,29177.0,0.145516]
[1609478154333,0.9855584,29181.0,29177.0,0.145516]
[1609478154535,0.0008,29181.0,29177.0,0.145516]
[1609478154959,0.9847584,29179.0,29177.0,0.145516]
[1609478155259,1.1847584,29179.0,29177.0,1.145516]
[1609478155459,0.9847584,29178.0,29177.0,1.045516]
[1609478156299,0.9847584,29179.0,29177.0,1.045516]
[1609478156500,0.9847584,29179.0,29178.0,0.175]
[1609478156705,0.9847584,29179.0,29178.0,0.045511]
[1609478156903,1.4238584,29180.0,29178.0,0.045511]
[1609478157205,0.4391,29180.0,29179.0,0.045508]
[1609478157401,1.4238584,29180.0,29179.0,0.045508]
[1609478157701,1.4238584,29180.0,29179.0,0.045507]
[1609478159457,0.45693264,29179.0,29178.0,1.0]
[1609478159657,1.44169104,29179.0,29178.0,1.0]
[1609478160059,0.76693264,29179.0,29178.0,1.0]
[1609478160259,0.45693264,29179.0,29178.0,2.35]
[1609478160460,0.45693264,29179.0,29178.0,2.25]
[1609478160655,0.45693264,29179.0,29178.0,2.585]
[1609478160856,0.45693264,29179.0,29178.0,3.235]
[1609478161358,0.45193264,29179.0,29178.0,2.32984157]
[1609478166292,0.50534507,29179.0,29178.0,2.32984157]
[1609478167095,0.50534507,29179.0,29178.0,2.42984157]
[1609478168236,0.50034507,29179.0,29178.0,3.77984157]
[1609478168538,0.49534507,29179.0,29178.0,2.42984157]
[1609478168740,0.44193264,29179.0,29178.0,2.42984157]
[1609478169235,0.44193264,29179.0,29178.0,3.37984157]
[1609478169836,0.44193264,29179.0,29178.0,2.42984157]
[1609478171155,0.44193264,29179.0,29178.0,3.47984157]
[1609478171358,0.49545359,29179.0,29178.0,3.48785677]
[1609478171558,0.49545359,29179.0,29178.0,2.43785677]
[1609478172155,0.49545359,29179.0,29178.0,3.68785677]
[1609478172759,0.49545359,29179.0,29178.0,2.43785677]
[1609478173157,0.49545359,29179.0,29178.0,3.48785677]
[1609478173786,0.49545359,29179.0,29178.0,2.43785677]
[1609478174188,0.49545359,29179.0,29178.0,3.28785677]
[1609478174592,0.44193264,29179.0,29178.0,2.43785677]
[1609478174789,0.44193264,29179.0,29178.0,2.33785677]
[1609478174990,1.42669104,29179.0,29178.0,2.33785677]
[1609478175197,1.42669104,29179.0,29178.0,2.00285677]
[1609478175198,3.32669104,29179.0,29178.0,2.00285677]
[1609478175390,3.68905304,29179.0,29178.0,2.00285677]
[1609478175593,3.68905304,29179.0,29178.0,1.00285677]
[1609478176197,3.72252116,29179.0,29178.0,1.00285677]
[1609478176398,3.77607553,29179.0,29178.0,1.00285677]
[1609478176599,4.93327266,29179.0,29178.0,1.00285677]
[1609478181515,4.89980454,29179.0,29178.0,1.00285677]